[Event "*** Titled Tuesday Blitz"]
[Site "Chess.com"]
[Date "2019.07.02"]
[Round "1"]
[White "Oleksandr_Bortnyk"]
[Black "MagnusSeinFanboy"]
[Result "1/2-1/2"]
[WhiteElo "2938"]
[BlackElo "2467"]
[TimeControl "180+2"]
[EndTime "13:09:05 PDT"]
[Termination "Game drawn by repetition"]

1. e4 {[%clk 0:02:47.5]} 1... c5 {[%clk 0:02:58.6]} 2. Nf3 {[%clk 0:02:47]} 2...
d6 {[%clk 0:02:59.1]} 3. b3 {[%clk 0:02:45.9]} 3... Nf6 {[%clk 0:02:52.3]} 4.
Bd3 {[%clk 0:02:43.2]} 4... g6 {[%clk 0:02:52.6]} 5. Bb2 {[%clk 0:02:42.6]} 5...
Bg7 {[%clk 0:02:54.1]} 6. e5 {[%clk 0:02:35.3]} 6... Nfd7 {[%clk 0:02:36.1]} 7.
Qe2 {[%clk 0:02:35.1]} 7... Nc6 {[%clk 0:02:33.9]} 8. Bb5 {[%clk 0:02:20.3]}
8... O-O {[%clk 0:02:28.1]} 9. Bxc6 {[%clk 0:02:20.6]} 9... bxc6 {[%clk
0:02:28.7]} 10. O-O {[%clk 0:02:21.2]} 10... dxe5 {[%clk 0:01:45.8]} 11. Nxe5
{[%clk 0:02:14.9]} 11... Nxe5 {[%clk 0:01:42.5]} 12. Bxe5 {[%clk 0:02:16.8]}
12... Bxe5 {[%clk 0:01:43.6]} 13. Qxe5 {[%clk 0:02:17.3]} 13... Qd4 {[%clk
0:01:45.3]} 14. Re1 {[%clk 0:02:13.2]} 14... Bf5 {[%clk 0:01:21.8]} 15. c3
{[%clk 0:01:55.8]} 15... Qxe5 {[%clk 0:01:05.6]} 16. Rxe5 {[%clk 0:01:57.7]}
16... Rfd8 {[%clk 0:01:06.3]} 17. Rxc5 {[%clk 0:01:25.6]} 17... Bxb1 {[%clk
0:01:07.2]} 18. Rxb1 {[%clk 0:01:27.3]} 18... Rxd2 {[%clk 0:01:08.4]} 19. a4
{[%clk 0:01:25.6]} 19... Rad8 {[%clk 0:01:06.7]} 20. g3 {[%clk 0:01:25.7]} 20...
R8d6 {[%clk 0:01:05.7]} 21. Re1 {[%clk 0:01:22.4]} 21... Rf6 {[%clk 0:01:02.1]}
22. Rf1 {[%clk 0:00:57.1]} 22... Rb2 {[%clk 0:00:58.3]} 23. b4 {[%clk
0:00:57.8]} 23... Rd6 {[%clk 0:00:50.6]} 24. Ra5 {[%clk 0:00:57.3]} 24... Rd7
{[%clk 0:00:51]} 25. Ra6 {[%clk 0:00:58.6]} 25... c5 {[%clk 0:00:48.6]} 26. bxc5
{[%clk 0:00:58.4]} 26... Rc2 {[%clk 0:00:49.4]} 27. c6 {[%clk 0:00:59.1]} 27...
Rc7 {[%clk 0:00:50.4]} 28. Rb1 {[%clk 0:00:49.8]} 28... Rxc3 {[%clk 0:00:51]}
29. Rb7 {[%clk 0:00:49]} 29... R7xc6 {[%clk 0:00:40.9]} 30. Rxc6 {[%clk
0:00:34.9]} 30... Rxc6 {[%clk 0:00:41.3]} 31. Rxa7 {[%clk 0:00:36.8]} 31... Rc4
{[%clk 0:00:38.6]} 32. a5 {[%clk 0:00:35.5]} 32... Ra4 {[%clk 0:00:39.1]} 33.
Kg2 {[%clk 0:00:34.9]} 33... Ra3 {[%clk 0:00:40.2]} 34. h4 {[%clk 0:00:31.1]}
34... h5 {[%clk 0:00:41]} 35. a6 {[%clk 0:00:29.1]} 35... Kg7 {[%clk 0:00:42.4]}
36. Kf1 {[%clk 0:00:29.6]} 36... Ra2 {[%clk 0:00:43]} 37. Kg2 {[%clk 0:00:26.7]}
37... Ra3 {[%clk 0:00:43.5]} 38. Ra8 {[%clk 0:00:27.9]} 38... e6 {[%clk
0:00:44.6]} 39. Kf1 {[%clk 0:00:21.6]} 39... Ra2 {[%clk 0:00:45.5]} 40. Ke1
{[%clk 0:00:23.2]} 40... Kf6 {[%clk 0:00:46.2]} 41. Ra7 {[%clk 0:00:23.5]} 41...
Kg7 {[%clk 0:00:46.1]} 42. Kf1 {[%clk 0:00:24.3]} 42... Kf6 {[%clk 0:00:47.4]}
43. Kg1 {[%clk 0:00:25.2]} 43... Kg7 {[%clk 0:00:48.5]} 44. Kg2 {[%clk
0:00:26.7]} 44... Kf6 {[%clk 0:00:50.2]} 45. Kf3 {[%clk 0:00:27.7]} 45... Ke5
{[%clk 0:00:46.6]} 46. Rxf7 {[%clk 0:00:24.2]} 46... Ra3+ {[%clk 0:00:46.6]} 47.
Kg2 {[%clk 0:00:20.2]} 47... Rxa6 {[%clk 0:00:48.5]} 48. f4+ {[%clk 0:00:21.8]}
48... Ke4 {[%clk 0:00:47.6]} 49. Rf6 {[%clk 0:00:23.7]} 49... Ra2+ {[%clk
0:00:43.9]} 50. Kh3 {[%clk 0:00:24.7]} 50... Kf3 {[%clk 0:00:41.7]} 51. Rxg6
{[%clk 0:00:13.2]} 51... Ra1 {[%clk 0:00:40.8]} 52. Kh2 {[%clk 0:00:14.2]} 52...
Ra2+ {[%clk 0:00:42]} 53. Kh3 {[%clk 0:00:13.5]} 53... Ra1 {[%clk 0:00:43.3]}
54. Kh2 {[%clk 0:00:14.7]} 54... Ra2+ {[%clk 0:00:44.4]} 55. Kg1 {[%clk
0:00:15.6]} 55... Ra1+ {[%clk 0:00:44.4]} 56. Kh2 {[%clk 0:00:16.8]} 1/2-1/2

[Event "*** Titled Tuesday Blitz"]
[Site "Chess.com"]
[Date "2019.07.02"]
[Round "1"]
[White "Gogolev_Artemy"]
[Black "SalgadoChess91"]
[Result "0-1"]
[WhiteElo "2432"]
[BlackElo "2832"]
[TimeControl "180+2"]
[EndTime "13:09:12 PDT"]
[Termination "SalgadoChess91 won by resignation"]

1. Nf3 {[%clk 0:02:59]} 1... d5 {[%clk 0:02:59.2]} 2. d4 {[%clk 0:02:58.7]} 2...
Nf6 {[%clk 0:03:00]} 3. c4 {[%clk 0:02:57.8]} 3... e6 {[%clk 0:03:01.2]} 4. g3
{[%clk 0:02:58]} 4... Bb4+ {[%clk 0:03:01.4]} 5. Bd2 {[%clk 0:02:56.5]} 5... Be7
{[%clk 0:03:02.3]} 6. Bg2 {[%clk 0:02:57.1]} 6... O-O {[%clk 0:03:03.5]} 7. Qc2
{[%clk 0:02:57.5]} 7... Nbd7 {[%clk 0:03:04.1]} 8. O-O {[%clk 0:02:58.1]} 8...
c6 {[%clk 0:03:05.3]} 9. b3 {[%clk 0:02:55.6]} 9... Ne4 {[%clk 0:03:06.2]} 10.
Nc3 {[%clk 0:02:52.1]} 10... Nxd2 {[%clk 0:03:06.7]} 11. Qxd2 {[%clk 0:02:49.9]}
11... Rb8 {[%clk 0:02:57.7]} 12. e4 {[%clk 0:02:49.6]} 12... Nf6 {[%clk
0:02:35.3]} 13. Qf4 {[%clk 0:02:33.4]} 13... Bd7 {[%clk 0:02:32.5]} 14. e5
{[%clk 0:02:25.7]} 14... Ne8 {[%clk 0:02:31.9]} 15. Rac1 {[%clk 0:02:09.7]}
15... b6 {[%clk 0:02:28.8]} 16. Rfd1 {[%clk 0:02:05.4]} 16... Nc7 {[%clk
0:02:26.3]} 17. h4 {[%clk 0:02:05.3]} 17... Rc8 {[%clk 0:02:19.7]} 18. Bf1
{[%clk 0:01:55.8]} 18... Ba3 {[%clk 0:02:15]} 19. Rc2 {[%clk 0:01:56]} 19... Qe7
{[%clk 0:02:14.6]} 20. Bd3 {[%clk 0:01:54.1]} 20... h6 {[%clk 0:02:15.2]} 21.
Qe3 {[%clk 0:01:40.5]} 21... Bb4 {[%clk 0:02:15.4]} 22. Rcc1 {[%clk 0:01:39.2]}
22... Rfd8 {[%clk 0:02:12.7]} 23. h5 {[%clk 0:01:36.9]} 23... c5 {[%clk
0:02:05.8]} 24. cxd5 {[%clk 0:01:33.3]} 24... exd5 {[%clk 0:02:02.1]} 25. Bb1
{[%clk 0:01:32.6]} 25... Bxc3 {[%clk 0:01:52.4]} 26. Rxc3 {[%clk 0:01:29.8]}
26... Ne6 {[%clk 0:01:52.9]} 27. Qd3 {[%clk 0:01:21.7]} 27... Nf8 {[%clk
0:01:53.3]} 28. Rdc1 {[%clk 0:01:10.7]} 28... Bg4 {[%clk 0:01:52.1]} 29. Nh4
{[%clk 0:01:07]} 29... Qg5 {[%clk 0:01:31.8]} 30. dxc5 {[%clk 0:00:54.2]} 30...
bxc5 {[%clk 0:01:31.8]} 31. Qa6 {[%clk 0:00:41.1]} 31... d4 {[%clk 0:01:24.2]}
32. f4 {[%clk 0:00:34.8]} 32... Qxh5 {[%clk 0:01:24.9]} 33. Rxc5 {[%clk
0:00:34.9]} 33... Rxc5 {[%clk 0:01:25.5]} 34. Rxc5 {[%clk 0:00:36.6]} 34... Be2
{[%clk 0:01:22.8]} 35. Qa5 {[%clk 0:00:31.5]} 35... Ne6 {[%clk 0:01:10.6]} 36.
Rd5 {[%clk 0:00:27.5]} 36... Rc8 {[%clk 0:01:00.5]} 37. Qd2 {[%clk 0:00:24.1]}
37... Ba6 {[%clk 0:00:50.2]} 38. f5 {[%clk 0:00:17.5]} 38... Ng5 {[%clk
0:00:46.5]} 39. Rxd4 {[%clk 0:00:18.3]} 39... Nf3+ {[%clk 0:00:25.7]} 40. Nxf3
{[%clk 0:00:17]} 40... Qxf3 {[%clk 0:00:27.6]} 41. Rd8+ {[%clk 0:00:16]} 41...
Rxd8 {[%clk 0:00:28.9]} 42. Qxd8+ {[%clk 0:00:17.5]} 42... Kh7 {[%clk
0:00:30.7]} 43. f6+ {[%clk 0:00:17.9]} 43... g6 {[%clk 0:00:32]} 44. Qd2 {[%clk
0:00:03.9]} 44... Qxg3+ {[%clk 0:00:31.8]} 45. Qg2 {[%clk 0:00:04.7]} 45... Qe1+
{[%clk 0:00:32.6]} 46. Kh2 {[%clk 0:00:04.5]} 46... Qxb1 {[%clk 0:00:30.7]} 47.
e6 {[%clk 0:00:05.6]} 47... fxe6 {[%clk 0:00:30.3]} 48. f7 {[%clk 0:00:05.5]}
48... Qf5 {[%clk 0:00:30.4]} 49. Qa8 {[%clk 0:00:05.1]} 49... Qxf7 {[%clk
0:00:29.8]} 0-1

[Event "*** Titled Tuesday Blitz"]
[Site "Chess.com"]
[Date "2019.07.02"]
[Round "1"]
[White "oskariot"]
[Black "Khanya_Mazibuko"]
[Result "1-0"]
[WhiteElo "2603"]
[BlackElo "2245"]
[TimeControl "180+2"]
[EndTime "13:09:16 PDT"]
[Termination "oskariot won on time"]

1. c4 {[%clk 0:03:00.1]} 1... e5 {[%clk 0:02:53.5]} 2. g3 {[%clk 0:03:01.3]}
2... f5 {[%clk 0:02:53.3]} 3. Nc3 {[%clk 0:03:00.6]} 3... Nc6 {[%clk 0:02:54.5]}
4. Bg2 {[%clk 0:02:54]} 4... Nf6 {[%clk 0:02:21.1]} 5. e3 {[%clk 0:02:55.2]}
5... d5 {[%clk 0:02:21.4]} 6. Nge2 {[%clk 0:02:56.8]} 6... d4 {[%clk 0:02:17.6]}
7. exd4 {[%clk 0:02:57.6]} 7... exd4 {[%clk 0:02:18.5]} 8. Nd5 {[%clk
0:02:59.5]} 8... Be6 {[%clk 0:02:11.9]} 9. Nef4 {[%clk 0:02:56.6]} 9... Bf7
{[%clk 0:02:06.2]} 10. O-O {[%clk 0:02:56.8]} 10... Be7 {[%clk 0:02:00.7]} 11.
Nxe7 {[%clk 0:02:40.8]} 11... Nxe7 {[%clk 0:02:01.2]} 12. Bxb7 {[%clk
0:02:41.9]} 12... Rb8 {[%clk 0:02:01.8]} 13. Bg2 {[%clk 0:02:43.5]} 13... O-O
{[%clk 0:02:00.5]} 14. Re1 {[%clk 0:02:37]} 14... Bxc4 {[%clk 0:01:59.8]} 15. d3
{[%clk 0:02:36.7]} 15... Bf7 {[%clk 0:01:59.6]} 16. Ne6 {[%clk 0:02:36.5]} 16...
Bxe6 {[%clk 0:01:59.3]} 17. Rxe6 {[%clk 0:02:38.4]} 17... Qd7 {[%clk 0:01:58]}
18. Ra6 {[%clk 0:02:37]} 18... c5 {[%clk 0:01:55.8]} 19. Qa4 {[%clk 0:02:25.4]}
19... Qxa4 {[%clk 0:01:45]} 20. Rxa4 {[%clk 0:02:27.3]} 20... Ned5 {[%clk
0:01:34.9]} 21. Rxa7 {[%clk 0:02:20.7]} 21... Rfe8 {[%clk 0:01:35.1]} 22. Bg5
{[%clk 0:02:22.2]} 22... Rxb2 {[%clk 0:01:33.6]} 23. Bxf6 {[%clk 0:02:15.4]}
23... Nxf6 {[%clk 0:01:33.9]} 24. a4 {[%clk 0:02:17.3]} 24... Ree2 {[%clk
0:01:32.4]} 25. Rb7 {[%clk 0:01:50.7]} 25... Rbd2 {[%clk 0:01:26.2]} 26. Rf1
{[%clk 0:01:46.7]} 26... Ng4 {[%clk 0:01:18.1]} 27. Bd5+ {[%clk 0:01:37.3]}
27... Kf8 {[%clk 0:01:18.7]} 28. Rf7+ {[%clk 0:01:38.3]} 28... Ke8 {[%clk
0:01:18.7]} 29. Rxf5 {[%clk 0:01:40.1]} 29... Ne5 {[%clk 0:00:54.7]} 30. a5
{[%clk 0:01:23.3]} 30... g6 {[%clk 0:00:54.2]} 31. Rf6 {[%clk 0:01:21.4]} 31...
Nxd3 {[%clk 0:00:33.8]} 32. a6 {[%clk 0:01:16.8]} 32... Re7 {[%clk 0:00:25]} 33.
Ra1 {[%clk 0:01:08]} 33... Ra7 {[%clk 0:00:18.8]} 34. Rf7 {[%clk 0:00:57.3]}
34... Rxf7 {[%clk 0:00:15.9]} 35. Bxf7+ {[%clk 0:00:59.2]} 35... Kxf7 {[%clk
0:00:15.9]} 36. a7 {[%clk 0:01:00.8]} 36... Nxf2 {[%clk 0:00:15.2]} 37. a8=Q
{[%clk 0:00:57.6]} 37... Nh3+ {[%clk 0:00:16.3]} 38. Kf1 {[%clk 0:00:58.8]}
38... Rxh2 {[%clk 0:00:11.1]} 39. Ra7+ {[%clk 0:00:57.9]} 39... Kf6 {[%clk
0:00:12]} 40. Qd8+ {[%clk 0:00:55.5]} 40... Kf5 {[%clk 0:00:06.7]} 41. Qd5+
{[%clk 0:00:48.7]} 41... Kg4 {[%clk 0:00:06.2]} 42. Qxc5 {[%clk 0:00:50]} 42...
Kf3 {[%clk 0:00:03.9]} 43. Rf7+ {[%clk 0:00:45.1]} 43... Ke3 {[%clk 0:00:03.6]}
44. Qe5+ {[%clk 0:00:42.8]} 44... Kd3 {[%clk 0:00:03.8]} 45. Rf3+ {[%clk
0:00:44]} 45... Kc4 {[%clk 0:00:04.8]} 46. Qe6+ {[%clk 0:00:45.5]} 46... Kc5
{[%clk 0:00:02.5]} 47. Ke1 {[%clk 0:00:41.2]} 1-0

[Event "*** Titled Tuesday Blitz"]
[Site "Chess.com"]
[Date "2019.07.02"]
[Round "1"]
[White "Zarikovs1999"]
[Black "Spring199"]
[Result "1-0"]
[WhiteElo "2555"]
[BlackElo "2197"]
[TimeControl "180+2"]
[EndTime "13:09:16 PDT"]
[Termination "Zarikovs1999 won by checkmate"]

1. e4 {[%clk 0:02:57.3]} 1... e5 {[%clk 0:03:00.6]} 2. Nf3 {[%clk 0:02:58.2]}
2... Nc6 {[%clk 0:03:01.4]} 3. Bb5 {[%clk 0:02:59.6]} 3... a6 {[%clk 0:03:01.6]}
4. Ba4 {[%clk 0:03:00.5]} 4... Nf6 {[%clk 0:03:02.9]} 5. O-O {[%clk 0:03:00.9]}
5... Be7 {[%clk 0:03:04.2]} 6. Re1 {[%clk 0:03:01.3]} 6... b5 {[%clk 0:03:05.3]}
7. Bb3 {[%clk 0:03:02.7]} 7... O-O {[%clk 0:03:07.2]} 8. d3 {[%clk 0:03:03.1]}
8... d6 {[%clk 0:03:05.3]} 9. c3 {[%clk 0:03:02.5]} 9... Nb8 {[%clk 0:03:03.2]}
10. Nbd2 {[%clk 0:02:57.9]} 10... Nbd7 {[%clk 0:03:03.8]} 11. Nf1 {[%clk
0:02:54.5]} 11... c5 {[%clk 0:03:03.6]} 12. Ng3 {[%clk 0:02:50.2]} 12... Nb6
{[%clk 0:03:03.7]} 13. d4 {[%clk 0:02:38.5]} 13... exd4 {[%clk 0:02:51.2]} 14.
cxd4 {[%clk 0:02:37.2]} 14... Bg4 {[%clk 0:02:51.1]} 15. Be3 {[%clk 0:02:15.9]}
15... c4 {[%clk 0:02:46]} 16. Bc2 {[%clk 0:02:14.3]} 16... h6 {[%clk 0:02:41.5]}
17. h3 {[%clk 0:02:07.5]} 17... Bd7 {[%clk 0:02:39]} 18. Qd2 {[%clk 0:01:58.6]}
18... Qc8 {[%clk 0:02:32.7]} 19. Nf5 {[%clk 0:01:53.3]} 19... Bxf5 {[%clk
0:02:32.7]} 20. exf5 {[%clk 0:01:52.1]} 20... Nbd5 {[%clk 0:02:33.3]} 21. Bf4
{[%clk 0:01:46.4]} 21... Nxf4 {[%clk 0:02:33.2]} 22. Qxf4 {[%clk 0:01:44.6]}
22... Nd5 {[%clk 0:02:34.4]} 23. Qe4 {[%clk 0:01:41.7]} 23... Nb4 {[%clk
0:01:32.8]} 24. f6 {[%clk 0:01:27.2]} 24... Nxc2 {[%clk 0:01:32.7]} 25. fxe7
{[%clk 0:01:27.8]} 25... Nxe1 {[%clk 0:01:32.9]} 26. exf8=Q+ {[%clk 0:01:27.1]}
26... Qxf8 {[%clk 0:01:33.2]} 27. Rxe1 {[%clk 0:01:28.3]} 27... Rd8 {[%clk
0:01:29.7]} 28. d5 {[%clk 0:01:23.1]} 28... g6 {[%clk 0:01:29.5]} 29. Nd4 {[%clk
0:01:23.9]} 29... Qg7 {[%clk 0:01:29.4]} 30. Nc6 {[%clk 0:01:23.4]} 30... Rf8
{[%clk 0:01:29.4]} 31. Re2 {[%clk 0:01:20.4]} 31... Kh7 {[%clk 0:01:23.5]} 32.
Qe7 {[%clk 0:01:19.5]} 32... Rc8 {[%clk 0:01:07.5]} 33. Qxd6 {[%clk 0:01:16.3]}
33... b4 {[%clk 0:01:00.6]} 34. Qxb4 {[%clk 0:01:12.3]} 34... Qf6 {[%clk
0:01:00.3]} 35. Qe7 {[%clk 0:01:11.9]} 35... Qf5 {[%clk 0:00:58.7]} 36. Ne5
{[%clk 0:01:05.1]} 36... Kg7 {[%clk 0:00:54.5]} 37. d6 {[%clk 0:00:58.5]} 37...
c3 {[%clk 0:00:52.1]} 38. bxc3 {[%clk 0:00:54.8]} 38... Rxc3 {[%clk 0:00:52.4]}
39. Nf3 {[%clk 0:00:41.9]} 39... Rc1+ {[%clk 0:00:50.4]} 40. Re1 {[%clk
0:00:42.7]} 40... Rxe1+ {[%clk 0:00:47.5]} 41. Qxe1 {[%clk 0:00:44.6]} 41... Kf6
{[%clk 0:00:44.6]} 42. Qe7+ {[%clk 0:00:40.1]} 42... Kg7 {[%clk 0:00:41.4]} 43.
Qe5+ {[%clk 0:00:34.1]} 43... Qxe5 {[%clk 0:00:41.6]} 44. Nxe5 {[%clk 0:00:36]}
44... Kf6 {[%clk 0:00:41.9]} 45. d7 {[%clk 0:00:35.7]} 45... Ke7 {[%clk
0:00:42.6]} 46. Nxf7 {[%clk 0:00:36.5]} 46... Kxd7 {[%clk 0:00:42.7]} 47. Nxh6
{[%clk 0:00:37.5]} 47... a5 {[%clk 0:00:43.4]} 48. g4 {[%clk 0:00:38.8]} 48...
Kc6 {[%clk 0:00:45.3]} 49. f4 {[%clk 0:00:39.8]} 49... a4 {[%clk 0:00:47.1]} 50.
f5 {[%clk 0:00:40.9]} 50... Kd6 {[%clk 0:00:48.5]} 51. Kf2 {[%clk 0:00:42.1]}
51... gxf5 {[%clk 0:00:49.1]} 52. gxf5 {[%clk 0:00:44]} 52... Ke5 {[%clk
0:00:51]} 53. Kf3 {[%clk 0:00:45.2]} 53... a3 {[%clk 0:00:51.4]} 54. Kg4 {[%clk
0:00:45.8]} 54... Kf6 {[%clk 0:00:53.3]} 55. Kf4 {[%clk 0:00:47]} 55... Kg7
{[%clk 0:00:54.6]} 56. Kg5 {[%clk 0:00:48.9]} 56... Kh8 {[%clk 0:00:53.9]} 57.
Ng4 {[%clk 0:00:48.9]} 57... Kg7 {[%clk 0:00:54.5]} 58. f6+ {[%clk 0:00:50.1]}
58... Kf7 {[%clk 0:00:55.5]} 59. Kf5 {[%clk 0:00:51.6]} 59... Kf8 {[%clk
0:00:56.1]} 60. Ke6 {[%clk 0:00:52.8]} 60... Ke8 {[%clk 0:00:56.7]} 61. f7+
{[%clk 0:00:54.3]} 61... Kf8 {[%clk 0:00:58.2]} 62. Ne5 {[%clk 0:00:55.9]} 62...
Kg7 {[%clk 0:00:58.6]} 63. Ke7 {[%clk 0:00:57.3]} 63... Kh7 {[%clk 0:00:58.6]}
64. Ng4 {[%clk 0:00:57.9]} 64... Kg6 {[%clk 0:00:54.9]} 65. f8=Q {[%clk
0:00:58.6]} 65... Kg5 {[%clk 0:00:55.4]} 66. Qf6+ {[%clk 0:00:58.8]} 66... Kh5
{[%clk 0:00:55.6]} 67. Qh6# {[%clk 0:01:00.7]} 1-0

[Event "*** Titled Tuesday Blitz"]
[Site "Chess.com"]
[Date "2019.07.02"]
[Round "1"]
[White "benhal"]
[Black "GMKrikor"]
[Result "0-1"]
[WhiteElo "2375"]
[BlackElo "2726"]
[TimeControl "180+2"]
[EndTime "13:09:17 PDT"]
[Termination "GMKrikor won by resignation"]

1. c4 {[%clk 0:02:57.6]} 1... c5 {[%clk 0:02:45.6]} 2. Nc3 {[%clk 0:02:55.5]}
2... Nc6 {[%clk 0:02:26.8]} 3. g3 {[%clk 0:02:56.2]} 3... g6 {[%clk 0:02:12.6]}
4. Bg2 {[%clk 0:02:55.4]} 4... Bg7 {[%clk 0:02:11.7]} 5. e4 {[%clk 0:02:52.7]}
5... d6 {[%clk 0:02:07.9]} 6. Nge2 {[%clk 0:02:53.2]} 6... e6 {[%clk 0:02:07]}
7. O-O {[%clk 0:02:52.5]} 7... Nge7 {[%clk 0:01:49]} 8. d3 {[%clk 0:02:52.6]}
8... Nd4 {[%clk 0:01:49.8]} 9. a3 {[%clk 0:02:52.3]} 9... a5 {[%clk 0:01:43.7]}
10. Rb1 {[%clk 0:02:52.3]} 10... Nec6 {[%clk 0:01:41.7]} 11. Nxd4 {[%clk
0:02:52.1]} 11... cxd4 {[%clk 0:01:28.4]} 12. Nb5 {[%clk 0:02:48.1]} 12... O-O
{[%clk 0:01:15.2]} 13. b4 {[%clk 0:02:46.6]} 13... axb4 {[%clk 0:01:16]} 14.
axb4 {[%clk 0:02:48.5]} 14... e5 {[%clk 0:01:16.6]} 15. c5 {[%clk 0:02:38.1]}
15... dxc5 {[%clk 0:01:15.9]} 16. bxc5 {[%clk 0:02:39.4]} 16... Qe7 {[%clk
0:00:56.1]} 17. Nd6 {[%clk 0:02:26.8]} 17... Rd8 {[%clk 0:00:50.1]} 18. h4
{[%clk 0:02:16.4]} 18... Rb8 {[%clk 0:00:48.1]} 19. Rb6 {[%clk 0:02:14.8]} 19...
Be6 {[%clk 0:00:46]} 20. Bg5 {[%clk 0:02:09.4]} 20... f6 {[%clk 0:00:45.9]} 21.
Bd2 {[%clk 0:02:10]} 21... Qc7 {[%clk 0:00:47.3]} 22. Qb1 {[%clk 0:02:10.3]}
22... Bf8 {[%clk 0:00:46.3]} 23. Nxb7 {[%clk 0:02:04.5]} 23... Rdc8 {[%clk
0:00:36]} 24. Rc1 {[%clk 0:01:57.6]} 24... Be7 {[%clk 0:00:28.2]} 25. Na5 {[%clk
0:01:45.9]} 25... Bxc5 {[%clk 0:00:17]} 26. Rxb8 {[%clk 0:00:54.6]} 26... Rxb8
{[%clk 0:00:18]} 27. Qa1 {[%clk 0:00:54.3]} 27... Nxa5 {[%clk 0:00:19.4]} 28.
Bxa5 {[%clk 0:00:54.5]} 28... Qd6 {[%clk 0:00:20]} 29. Bd2 {[%clk 0:00:52.9]}
29... Bb4 {[%clk 0:00:15.2]} 30. Bxb4 {[%clk 0:00:52.8]} 30... Qxb4 {[%clk
0:00:16.9]} 31. Qa7 {[%clk 0:00:52.9]} 31... Qb7 {[%clk 0:00:17.2]} 32. Qa5
{[%clk 0:00:51.5]} 32... Qb6 {[%clk 0:00:16]} 33. Qa3 {[%clk 0:00:50]} 33... Qb2
{[%clk 0:00:14.2]} 34. Ra1 {[%clk 0:00:31.9]} 34... Qxa3 {[%clk 0:00:14.6]} 35.
Rxa3 {[%clk 0:00:33.8]} 35... Rb7 {[%clk 0:00:12.8]} 36. Kh2 {[%clk 0:00:28.1]}
36... Kf7 {[%clk 0:00:14.1]} 37. Bh3 {[%clk 0:00:29.1]} 37... Bb3 {[%clk
0:00:13.1]} 38. f4 {[%clk 0:00:28.6]} 38... Bc2 {[%clk 0:00:09]} 39. fxe5 {[%clk
0:00:28.4]} 39... fxe5 {[%clk 0:00:09.6]} 40. Bf1 {[%clk 0:00:27.7]} 40... Rb3
{[%clk 0:00:07.8]} 41. Rxb3 {[%clk 0:00:27.7]} 41... Bxb3 {[%clk 0:00:09.2]} 42.
Kg2 {[%clk 0:00:27.7]} 42... Ke7 {[%clk 0:00:08]} 43. g4 {[%clk 0:00:28.9]}
43... Kd6 {[%clk 0:00:06.8]} 44. g5 {[%clk 0:00:30]} 44... Kc5 {[%clk
0:00:08.4]} 45. Kf2 {[%clk 0:00:31.4]} 45... Kb4 {[%clk 0:00:09.9]} 46. Ke1
{[%clk 0:00:27.9]} 46... Kc3 {[%clk 0:00:10.9]} 47. h5 {[%clk 0:00:28.3]} 47...
Bc2 {[%clk 0:00:04.8]} 48. hxg6 {[%clk 0:00:28.2]} 48... hxg6 {[%clk 0:00:05.7]}
49. Bh3 {[%clk 0:00:29.5]} 49... Bxd3 {[%clk 0:00:07.1]} 50. Bf5 {[%clk
0:00:30.6]} 50... gxf5 {[%clk 0:00:07.3]} 51. g6 {[%clk 0:00:31.4]} 51... fxe4
{[%clk 0:00:08.6]} 0-1

[Event "*** Titled Tuesday Blitz"]
[Site "Chess.com"]
[Date "2019.07.02"]
[Round "1"]
[White "josiwales"]
[Black "penguingm1"]
[Result "0-1"]
[WhiteElo "2465"]
[BlackElo "2962"]
[TimeControl "180+2"]
[EndTime "13:09:23 PDT"]
[Termination "penguingm1 won by resignation"]

1. e4 {[%clk 0:03:01.9]} 1... e5 {[%clk 0:02:58.2]} 2. Nf3 {[%clk 0:03:02.9]}
2... Nc6 {[%clk 0:02:59.4]} 3. Bc4 {[%clk 0:03:04.5]} 3... Bc5 {[%clk
0:02:59.9]} 4. c3 {[%clk 0:03:03.8]} 4... Nf6 {[%clk 0:03:01.1]} 5. d3 {[%clk
0:03:05.4]} 5... a6 {[%clk 0:03:02]} 6. a4 {[%clk 0:03:05.2]} 6... d6 {[%clk
0:03:02.6]} 7. O-O {[%clk 0:03:04.5]} 7... O-O {[%clk 0:03:03.7]} 8. Na3 {[%clk
0:03:03.8]} 8... Be6 {[%clk 0:02:59.6]} 9. Bxe6 {[%clk 0:02:59.1]} 9... fxe6
{[%clk 0:03:00.5]} 10. Nc2 {[%clk 0:03:01]} 10... Ba7 {[%clk 0:02:58.2]} 11. Be3
{[%clk 0:03:01.7]} 11... Qe8 {[%clk 0:02:57.9]} 12. Bxa7 {[%clk 0:03:01.3]}
12... Rxa7 {[%clk 0:02:58.9]} 13. Ne3 {[%clk 0:03:02.4]} 13... Ra8 {[%clk
0:02:56.4]} 14. a5 {[%clk 0:03:03.4]} 14... h6 {[%clk 0:02:47.9]} 15. Qb3 {[%clk
0:03:04.2]} 15... Qd7 {[%clk 0:02:44.4]} 16. h3 {[%clk 0:03:00.7]} 16... Kh7
{[%clk 0:02:45]} 17. Nc4 {[%clk 0:02:55.8]} 17... Nh5 {[%clk 0:02:44.9]} 18. d4
{[%clk 0:02:49.9]} 18... exd4 {[%clk 0:02:41.8]} 19. cxd4 {[%clk 0:02:49.9]}
19... Nf4 {[%clk 0:02:41.6]} 20. Qe3 {[%clk 0:02:47.4]} 20... Qf7 {[%clk
0:02:40.1]} 21. Kh2 {[%clk 0:02:42.9]} 21... Qh5 {[%clk 0:02:01]} 22. Ncd2
{[%clk 0:02:32.7]} 22... Rf7 {[%clk 0:01:42.2]} 23. e5 {[%clk 0:02:24.7]} 23...
Raf8 {[%clk 0:01:13.6]} 24. Rg1 {[%clk 0:02:09.5]} 24... Kg8 {[%clk 0:00:51.9]}
25. Ra3 {[%clk 0:02:09.3]} 25... Nb4 {[%clk 0:00:48.5]} 26. exd6 {[%clk
0:02:04.3]} 26... cxd6 {[%clk 0:00:47.6]} 27. Rb3 {[%clk 0:02:04.8]} 27... Nbd5
{[%clk 0:00:38.4]} 28. Qe4 {[%clk 0:02:06]} 28... Kh8 {[%clk 0:00:28.2]} 29. Rc1
{[%clk 0:01:21.5]} 29... g5 {[%clk 0:00:25.3]} 30. Ng1 {[%clk 0:01:18.7]} 30...
g4 {[%clk 0:00:20.1]} 31. Rg3 {[%clk 0:01:14.6]} 31... Rg7 {[%clk 0:00:13.7]}
32. Nf1 {[%clk 0:01:09.9]} 32... Qh4 {[%clk 0:00:14.7]} 33. Ne3 {[%clk
0:00:50.2]} 33... h5 {[%clk 0:00:15.8]} 34. Nxd5 {[%clk 0:00:49.5]} 34... exd5
{[%clk 0:00:17.7]} 35. Qe3 {[%clk 0:00:47.3]} 35... Qg5 {[%clk 0:00:17.7]} 36.
Nf3 {[%clk 0:00:41.6]} 36... Qf6 {[%clk 0:00:18.6]} 37. Ng1 {[%clk 0:00:38.1]}
37... Re7 {[%clk 0:00:19.7]} 38. Qb3 {[%clk 0:00:37.1]} 38... Qxd4 {[%clk
0:00:16]} 39. hxg4 {[%clk 0:00:36.3]} 39... Qxf2 {[%clk 0:00:17.1]} 40. Rc2
{[%clk 0:00:34.3]} 40... Qd4 {[%clk 0:00:14.1]} 41. Nf3 {[%clk 0:00:35.4]} 41...
Qf6 {[%clk 0:00:14.3]} 42. g5 {[%clk 0:00:36.7]} 42... Qe6 {[%clk 0:00:13]} 43.
Qc3+ {[%clk 0:00:37.3]} 43... Kg8 {[%clk 0:00:13.5]} 44. Qd4 {[%clk 0:00:36.6]}
44... Qe4 {[%clk 0:00:14.4]} 45. Qd2 {[%clk 0:00:33.5]} 45... Ng6 {[%clk
0:00:13.9]} 46. Rc1 {[%clk 0:00:29.3]} 46... h4 {[%clk 0:00:14.7]} 47. Rh3
{[%clk 0:00:30.3]} 47... Ref7 {[%clk 0:00:13.7]} 48. Re1 {[%clk 0:00:31.3]}
48... Qc4 {[%clk 0:00:14.8]} 49. Re6 {[%clk 0:00:31.4]} 49... Kg7 {[%clk
0:00:14.6]} 50. Rxg6+ {[%clk 0:00:26.4]} 50... Kxg6 {[%clk 0:00:15.8]} 51. Nxh4+
{[%clk 0:00:28.3]} 51... Kg7 {[%clk 0:00:16.8]} 52. g6 {[%clk 0:00:29.4]} 52...
Qf4+ {[%clk 0:00:17.6]} 53. Qxf4 {[%clk 0:00:27.2]} 53... Rxf4 {[%clk
0:00:19.5]} 54. Nf3 {[%clk 0:00:23.5]} 54... Kxg6 {[%clk 0:00:20.1]} 55. Rg3+
{[%clk 0:00:24.3]} 55... Kf6 {[%clk 0:00:21.3]} 56. Rg5 {[%clk 0:00:25.5]} 56...
Rxf3 {[%clk 0:00:21.8]} 57. Rxd5 {[%clk 0:00:26.5]} 57... Rb3 {[%clk 0:00:22.8]}
58. Rxd6+ {[%clk 0:00:27.9]} 58... Ke7 {[%clk 0:00:24]} 59. Rd2 {[%clk
0:00:29.1]} 59... Rf5 {[%clk 0:00:25.1]} 60. Kg1 {[%clk 0:00:31]} 60... Rxa5
{[%clk 0:00:26.5]} 0-1